bitfinex/quotes_ETHUSD_20250130
["timestamp","ask_amount","ask_price","bid_price","bid_amount"]
[1738233625361,0.5575,3214.3,3213.9,3.11147]
[1738233625560,3.66666667,3214.5,3214.2,0.6976]
[1738233625941,0.5575,3214.4,3214.2,0.6976]
[1738233627076,0.66666667,3214.5,3214.2,3.80879]
[1738233628000,0.66666667,3214.5,3214.2,4.500805]
[1738233628507,0.66666667,3214.5,3214.4,3.111]
[1738233629655,0.66666667,3214.5,3214.4,3.8086]
[1738233630787,0.66666667,3214.5,3214.4,4.09955551]
[1738233632326,0.66666667,3214.5,3214.4,4.15160852]
[1738233632559,0.66666667,3214.5,3214.4,5.26130954]
[1738233633291,0.66666667,3214.5,3214.4,10.60130954]
[1738233633503,0.66666667,3214.5,3214.4,10.83361337]
[1738233636418,0.66666667,3214.5,3214.4,5.49361337]
[1738233637491,0.66666667,3214.5,3214.4,4.56370954]
[1738233637713,0.66666667,3214.5,3214.4,0.34300852]
[1738233638343,0.5575,3214.7,3214.4,0.34300852]
[1738233638640,0.565,3214.5,3214.4,0.34300852]
[1738233638879,3.6759,3214.5,3214.4,0.05205301]
[1738233639060,0.015,3214.4,3213.8,3.11157]
[1738233639215,0.0075,3214.2,3213.8,3.11157]
[1738233642029,0.015,3214.2,3213.6,3.80931]
[1738233642346,3.11129,3214.1,3213.6,3.11171]
[1738233643244,0.565,3214.0,3213.5,3.11183]
[1738233643867,0.565,3214.0,3213.6,3.11176]
[1738233644175,0.015,3214.0,3213.7,3.11166]
[1738233644932,0.7668,3214.3,3213.7,0.65137822]
[1738233645177,0.7668,3214.3,3214.0,3.11133]
[1738233647180,0.7668,3214.3,3213.8,0.6976]
[1738233647368,0.7668,3214.3,3213.8,3.80908]
[1738233647667,0.7668,3214.3,3213.8,3.11148]
[1738233648163,0.7668,3214.3,3213.9,3.11148]
[1738233648371,0.7668,3214.3,3214.0,3.1113]
[1738233648530,0.0075,3214.4,3214.0,6.22259]
[1738233648719,0.0075,3214.4,3214.0,3.11129]
[1738233649721,0.5575,3214.4,3214.0,3.11132]
[1738233649919,0.5575,3214.4,3214.0,3.1113]
[1738233650724,0.5575,3214.4,3214.1,0.29064263]
[1738233651409,0.5575,3214.4,3214.1,3.40190263]
[1738233651811,0.5575,3214.4,3214.1,3.11126]
[1738233652532,0.5575,3214.4,3214.2,0.05156267]
[1738233655641,0.7518,3214.5,3214.2,0.05156267]
[1738233655934,0.8078,3215.1,3214.3,0.31628227]
[1738233656243,0.8078,3215.1,3214.6,3.11073]
[1738233656244,0.55,3215.0,3214.6,3.11073]
[1738233656536,0.55,3215.0,3214.7,0.04977215]
[1738233658536,0.55,3215.0,3214.7,3.11061]
[1738233659138,0.7973,3215.4,3215.1,3.11031]
[1738233659349,0.7973,3215.4,3215.3,3.11012]
[1738233659754,0.7973,3215.4,3215.3,3.1598103]
[1738233660104,0.7973,3215.4,3215.3,0.0496903]
[1738233660326,0.7973,3215.6,3215.3,0.0496903]
[1738233660521,0.7973,3215.6,3215.2,3.11015]
[1738233660744,0.7973,3215.6,3215.4,0.04967666]
[1738233661045,0.7973,3215.6,3215.5,0.04966302]
[1738233661245,1.3548,3215.6,3215.2,3.11015]
[1738233661453,1.3548,3215.6,3215.3,0.0496903]
[1738233661603,1.3548,3215.6,3215.3,3.1101]
[1738233661802,1.3548,3215.6,3215.4,0.0490416]
[1738233662001,0.55,3215.6,3215.4,3.1590616]
[1738233662641,0.8312,3215.8,3215.4,3.1590616]
[1738233664025,0.8312,3215.8,3215.4,6.2690316]
[1738233664223,3.0,3215.9,3215.4,3.85567476]
[1738233664533,3.0,3215.9,3215.6,3.10983]
[1738233664743,0.8094,3216.1,3215.8,3.10964]
[1738233665154,0.8094,3216.1,3215.9,0.04885572]
[1738233665757,0.8094,3216.1,3215.6,3.10975]
[1738233666057,0.8094,3216.1,3215.6,6.21952]
[1738233666262,0.8094,3216.1,3215.7,0.04888299]
[1738233667155,3.8094,3216.1,3215.7,0.04888299]
[1738233667951,3.10964,3215.8,3215.7,0.04888299]
[1738233668169,3.88124,3215.8,3215.7,0.04888299]
[1738233668379,3.10994,3215.5,3215.3,5.34]
[1738233668570,0.7716,3215.4,3215.3,5.34]
[1738233668775,0.7716,3215.4,3215.0,3.11036]
[1738233669068,0.7716,3215.4,3215.0,3.732451]
[1738233670832,0.5575,3215.3,3214.8,3.11055]
[1738233671375,3.66768,3215.3,3214.8,3.11055]
[1738233672033,3.66768,3215.3,3214.6,3.11072]
[1738233672363,0.8106,3215.0,3214.6,3.11072]
[1738233672876,0.8106,3215.0,3214.4,3.11095]
[1738233673073,0.5575,3214.8,3214.4,3.11095]
[1738233673275,3.66813,3214.8,3214.2,4.08304494]
[1738233673446,0.5575,3214.8,3214.3,3.11107]
[1738233673949,0.5575,3214.8,3214.3,6.22208]
[1738233675272,0.5575,3214.8,3214.4,0.29052555]
[1738233676784,0.5575,3214.8,3214.3,3.11101]
[1738233677482,0.5575,3214.9,3214.5,3.11085]
[1738233679791,3.0,3215.2,3214.7,3.11065]
[1738233680086,0.55,3215.2,3214.8,3.11052]
[1738233680279,0.55,3215.2,3214.7,3.11065]
[1738233680490,0.808,3215.1,3214.7,3.11065]
[1738233681446,0.808,3215.1,3214.8,3.1106]
[1738233682385,0.808,3215.1,3214.9,0.04909555]
[1738233684491,0.808,3215.1,3214.7,3.11065]
[1738233684641,0.808,3215.1,3214.8,0.04910919]
[1738233684873,0.808,3215.1,3214.7,3.11065]
[1738233685090,0.808,3215.1,3214.8,0.04923046]
[1738233685388,0.808,3215.1,3214.7,3.11065]
[1738233685685,0.808,3215.1,3214.8,0.04923046]
[1738233685988,0.808,3215.1,3214.7,3.11065]
[1738233686140,0.808,3215.1,3214.9,0.04921682]
[1738233686342,0.808,3215.1,3214.8,0.04923046]
[1738233686692,0.808,3215.1,3215.0,0.04920317]
[1738233686838,0.808,3215.1,3214.9,0.04921682]
[1738233687042,0.808,3215.1,3215.0,0.04920317]
[1738233687293,0.808,3215.1,3214.7,3.11065]
[1738233687588,0.808,3215.1,3214.8,0.04923046]
[1738233687886,0.808,3215.1,3214.9,0.04921682]
[1738233688392,0.808,3215.1,3215.0,0.04920317]
[1738233688553,0.808,3215.1,3214.7,3.11065]
[1738233688759,0.808,3215.1,3215.0,0.04920317]
[1738233689473,0.808,3215.1,3214.7,3.11065]
[1738233689967,0.808,3215.1,3214.8,0.04923046]
[1738233690288,0.808,3215.1,3214.7,3.11065]
[1738233690458,0.808,3215.1,3214.9,0.04921682]
[1738233690638,0.808,3215.1,3215.0,0.04920317]
[1738233691298,0.808,3215.1,3214.8,0.29099346]
[1738233691446,0.808,3215.1,3214.9,0.04921682]
[1738233692103,3.1098,3215.7,3214.9,0.39430285]
[1738233692247,1.003537,3216.1,3214.9,0.39430285]
[1738233692248,3.10939,3216.1,3215.3,3.80767]
[1738233692446,0.8104,3216.0,3215.7,3.1097]
[1738233692865,0.8104,3216.0,3215.8,0.04902272]
[1738233693193,0.55,3215.9,3215.5,3.10993]
[1738233693437,3.55,3215.9,3215.5,3.10986]
[1738233693594,3.65955,3215.9,3215.3,6.91777]
[1738233693892,3.65955,3215.9,3215.4,3.11002]
[1738233694050,3.65955,3215.9,3215.6,0.29089746]
[1738233694247,0.55,3215.9,3215.6,0.29089746]
[1738233694509,0.55,3215.9,3215.7,0.04903635]
[1738233695395,3.8104,3216.0,3215.7,0.04903635]
[1738233700914,6.91986,3216.0,3215.4,3.11]
[1738233701119,3.8104,3216.0,3215.4,3.801777]
[1738233701334,3.8104,3216.0,3215.5,3.15704318]
[1738233702004,6.91986,3216.0,3215.5,3.15704318]
[1738233702920,3.8104,3216.0,3215.5,3.15704318]
[1738233703321,3.0,3216.0,3215.5,3.18813925]
[1738233703532,3.10887,3216.6,3215.9,3.10945]
[1738233703822,0.565,3216.4,3215.9,3.10949]
[1738233704025,0.565,3216.4,3216.0,0.04684684]
[1738233704325,3.67406,3216.4,3216.0,0.04684684]
[1738233704628,3.0,3216.5,3216.0,0.04684684]
[1738233704807,3.0,3216.5,3216.0,3.15628684]
[1738233705014,0.8166,3216.7,3216.2,3.10922]
[1738233705230,3.77536667,3216.8,3216.2,3.10922]
[1738233705376,3.77536667,3216.8,3216.3,0.04677386]
[1738233705578,3.77536667,3216.8,3216.2,3.10922]
[1738233705788,3.77536667,3216.8,3216.4,0.04666398]
[1738233705989,3.77536667,3216.8,3216.3,0.04667761]
[1738233706209,3.77536667,3216.8,3216.0,3.42812801]
[1738233706210,3.11662,3216.4,3216.0,0.31873801]
[1738233706422,3.10932,3216.2,3215.6,12.61877163]
[1738233706617,0.7541,3216.1,3215.6,12.61877163]
[1738233706815,0.7541,3216.1,3215.6,15.72854163]
[1738233707033,0.7541,3216.1,3215.7,4.75234416]
[1738233708235,0.7541,3216.1,3215.8,3.10964]
[1738233708460,3.10917,3216.3,3215.8,6.21923]
[1738233708657,3.0,3216.5,3216.0,0.6976]
[1738233708795,3.88583,3216.6,3216.1,3.10927]
[1738233709144,3.88583,3216.6,3216.1,3.49306634]
[1738233709623,0.7769,3216.6,3216.2,3.10921]
[1738233709826,0.565,3216.7,3216.2,3.10921]
[1738233710021,6.67383,3216.7,3216.2,3.10921]
[1738233711133,6.67383,3216.7,3216.1,0.38379634]
[1738233711939,6.67383,3216.7,3216.1,3.49309634]
[1738233712107,6.67383,3216.7,3216.2,0.4221787]
[1738233712612,3.10888,3216.6,3216.3,0.04647798]
[1738233713111,6.21783,3216.6,3216.4,0.04646435]
[1738233713544,3.10901,3216.5,3215.9,6.50942267]
[1738233713995,3.10901,3216.5,3216.0,3.10944]
[1738233714641,1.3485,3216.4,3215.8,0.6976]
[1738233714797,1.3485,3216.4,3215.6,0.69899163]
[1738233714798,3.10929,3216.2,3215.6,4.50637163]
[1738233715001,3.10929,3216.2,3215.6,3.80877163]
[1738233715453,3.10938,3216.1,3215.6,3.10978]
[1738233718447,3.10961,3215.9,3215.4,5.34]
[1738233718658,3.10961,3215.9,3215.3,3.11007]
[1738233718803,0.55,3215.9,3215.3,3.11007]
[1738233719163,0.55,3215.9,3215.5,3.10993]
[1738233720327,0.55,3215.9,3215.6,0.29085844]
[1738233721028,3.6596,3215.9,3215.6,0.29085844]
[1738233721268,4.46064,3215.7,3215.6,0.29085844]
[1738233721862,3.10999,3215.5,3215.0,3.1104]
[1738233722214,0.55,3215.4,3215.1,0.23292256]
[1738233723143,0.55,3215.4,3215.1,3.34321256]
[1738233723361,0.565,3215.5,3215.1,3.34316256]
[1738233723526,0.565,3215.5,3215.2,0.29113277]
[1738233723861,0.7859,3215.7,3215.3,3.11008]
[1738233724235,0.55,3215.6,3215.2,3.40128277]
[1738233724629,0.55,3215.6,3215.2,6.51145277]
[1738233724767,0.55,3215.6,3215.2,3.40128277]
[1738233724966,0.55,3215.6,3215.3,3.11011]
[1738233725312,0.55,3215.6,3215.3,3.40124277]
[1738233726207,0.7859,3215.7,3215.4,3.11001]
[1738233726409,0.7829,3215.9,3215.4,0.03109962]
[1738233726567,0.7829,3215.9,3215.7,3.1097]
[1738233726768,0.0075,3216.0,3215.7,3.1097]
[1738233727171,0.0075,3216.0,3215.5,6.21978]
[1738233727516,0.55,3215.9,3215.8,0.04690974]
[1738233727678,0.55,3215.9,3215.4,0.29113277]
[1738233727880,3.67455,3215.9,3215.8,0.04690974]
[1738233728412,0.55,3215.7,3215.3,3.1101]
[1738233729113,0.55,3215.7,3215.3,6.22015]
[1738233729306,0.55,3215.7,3215.3,6.2201]
[1738233730107,0.55,3215.7,3215.4,3.11002]
[1738233732174,0.55,3215.8,3215.5,3.10992]
[1738233733101,3.8295,3216.1,3215.6,3.10978]
[1738233733270,0.565,3216.0,3215.5,3.10992]
[1738233733476,0.5575,3215.8,3215.3,6.22012]
[1738233734284,0.5575,3215.8,3215.3,3.11004]
[1738233734615,0.7606,3215.7,3215.3,3.11004]
[1738233735697,3.66706,3215.9,3215.4,3.10997]
[1738233736113,6.77669,3215.9,3215.4,3.10997]
[1738233736433,0.55,3215.7,3215.2,3.11013]
[1738233736817,0.55,3215.7,3215.1,3.80786]
[1738233736988,0.55,3215.8,3215.3,3.1101]
[1738233737740,1.3541,3215.5,3215.1,3.11028]
[1738233740215,1.3541,3215.5,3214.6,8.45077]
[1738233740216,0.0075,3215.2,3214.7,3.11063]
[1738233740407,0.55,3215.1,3214.7,3.11063]
[1738233740599,0.7726,3215.0,3214.5,3.11082]
[1738233740792,0.7726,3215.0,3214.6,3.11078]
[1738233741616,0.7726,3215.0,3214.6,0.23295049]
[1738233742462,0.7726,3215.0,3214.7,0.04723808]
[1738233743356,0.7726,3215.0,3214.7,0.28018857]
[1738233743525,0.55,3214.9,3214.7,0.28018857]
[1738233744463,0.55,3214.9,3214.7,0.04723808]
[1738233744761,0.55,3214.9,3214.4,3.11097]
[1738233744762,3.66051,3214.9,3214.4,3.11097]
[1738233745060,3.67551,3214.9,3214.8,0.04748477]
[1738233745243,4.431359,3214.9,3214.4,3.11097]
[1738233745455,3.67551,3214.9,3214.8,0.04762743]
[1738233745765,3.67551,3214.9,3214.8,0.047631]
[1738233745968,3.67551,3214.9,3214.5,0.23291741]
[1738233746555,3.67551,3214.9,3214.6,0.04765829]
[1738233746774,0.565,3214.9,3214.6,0.04765829]
[1738233747647,0.565,3214.9,3214.5,3.11085]
[1738233748044,0.565,3214.9,3214.6,0.04765829]
[1738233749766,3.67556,3214.9,3214.6,0.04765829]
[1738233749970,3.67556,3214.9,3214.4,3.11098]
[1738233750136,3.67556,3214.9,3214.7,0.04764465]
[1738233750340,3.67556,3214.9,3214.4,3.11098]
[1738233750553,3.67556,3214.9,3214.5,3.15856194]
[1738233750554,0.565,3214.9,3214.5,3.15856194]
[1738233750969,0.565,3214.9,3214.5,3.39137764]
[1738233751167,3.67551,3214.9,3214.5,0.28048764]
[1738233752145,0.0075,3214.8,3214.5,0.28048764]
[1738233752348,0.55,3214.7,3214.5,0.04767194]
[1738233752595,3.8659,3214.6,3214.2,0.27432494]
[1738233753339,0.7551,3214.6,3214.2,3.38549494]
[1738233754386,0.565,3214.7,3214.2,6.49662494]
[1738233754541,0.565,3214.7,3214.2,6.92797241]
[1738233755080,0.565,3214.7,3214.3,0.3116]
[1738233755289,3.67571,3214.7,3214.2,3.38544494]
[1738233756749,3.11087,3214.6,3214.2,0.27432494]
[1738233757465,3.11087,3214.6,3214.3,0.04789545]
[1738233757642,3.11087,3214.6,3214.2,0.27432494]
[1738233757850,3.11087,3214.6,3214.4,0.0478818]
[1738233758075,3.67571,3214.7,3214.2,0.27432494]
[1738233758378,3.1108,3214.6,3214.2,0.27432494]
[1738233758586,0.0075,3214.5,3214.3,0.04789545]
[1738233758792,0.015,3214.5,3214.3,0.04789545]
[1738233758946,0.015,3214.5,3214.4,0.0478818]
[1738233759290,0.015,3214.5,3214.2,0.27432494]
[1738233759440,3.1259,3214.5,3214.4,0.0478818]
[1738233759635,0.565,3214.4,3214.2,0.27432494]
[1738233763588,3.66109,3214.3,3214.2,0.27432494]
[1738233763798,4.47989,3214.3,3214.2,0.27432494]
[1738233764287,0.55,3214.3,3214.2,0.27432494]
[1738233764449,0.7641,3214.5,3214.2,0.27432494]
[1738233764643,3.1108,3214.6,3214.2,0.27432494]
[1738233764843,0.5575,3214.5,3214.2,0.27432494]
[1738233766700,3.565,3214.6,3214.2,0.27432494]
[1738233766901,0.55,3214.4,3214.2,0.27432494]
[1738233767203,3.661,3214.4,3214.2,0.27432494]
[1738233770310,3.66109,3214.3,3214.2,0.27432494]
[1738233772390,3.66109,3214.3,3214.2,0.32238033]
[1738233775320,0.55,3214.3,3214.2,0.32238033]
[1738233775646,3.32104,3214.9,3214.3,0.6976]
[1738233775777,3.11071,3214.7,3214.3,0.6976]
[1738233776109,3.11071,3214.7,3214.4,0.04810302]
[1738233777814,3.0,3214.6,3214.4,0.04810302]
[1738233778009,6.11087,3214.6,3214.4,0.04810302]
[1738233778183,3.1109,3214.5,3214.4,0.04810302]
[1738233778385,3.1109,3214.5,3214.2,0.27432494]
[1738233778598,3.1109,3214.5,3214.3,0.04811666]
[1738233778815,3.1109,3214.5,3214.2,0.27432494]
[1738233778969,3.1109,3214.5,3214.4,0.04810302]
[1738233779169,3.1109,3214.5,3214.2,0.27432494]
[1738233779369,3.1109,3214.5,3214.3,0.04811666]
[1738233779575,3.1109,3214.5,3214.2,0.27432494]
[1738233779773,3.1109,3214.5,3214.3,0.04811666]
[1738233780008,3.1109,3214.5,3214.2,0.27432494]
[1738233780202,3.1109,3214.5,3214.4,0.04810302]
[1738233780403,3.1109,3214.5,3214.2,0.27432494]
[1738233780725,3.1109,3214.5,3214.4,0.04810302]
[1738233780903,3.1109,3214.5,3214.3,0.04811666]
[1738233781110,3.1109,3214.5,3214.4,0.04810302]
[1738233781830,3.1109,3214.5,3214.2,0.27432494]
[1738233782140,3.1109,3214.5,3214.4,0.04810302]
[1738233782327,3.1109,3214.5,3214.3,0.04811666]
[1738233782480,3.1109,3214.5,3214.4,0.04810302]
[1738233783180,3.1109,3214.5,3214.2,0.27432494]
[1738233783378,3.1109,3214.5,3214.3,0.04811666]
[1738233783593,3.1109,3214.5,3214.2,0.27432494]
[1738233783778,3.1109,3214.5,3214.4,0.04810302]
[1738233784122,3.1109,3214.5,3214.2,0.27432494]
[1738233784325,3.1109,3214.5,3214.4,0.04810302]
[1738233784509,3.1109,3214.5,3214.3,0.28139891]
[1738233784821,3.1109,3214.5,3214.4,0.04810302]
[1738233786124,3.6759,3214.5,3214.4,0.04810302]
[1738233786297,3.11109,3214.3,3214.2,0.27432494]
[1738233786622,3.11109,3214.3,3214.2,0.32235178]
[1738233787823,3.67609,3214.3,3214.2,0.32235178]
[1738233787987,4.26619346,3214.3,3214.2,0.32235178]
[1738233788182,4.26619346,3214.3,3214.2,0.27432494]
[1738233788400,4.26619346,3214.3,3214.2,0.32231609]
[1738233789228,8.04279346,3214.3,3214.2,0.32231609]
[1738233789503,8.24579346,3214.3,3214.2,0.32231609]
[1738233789715,8.24579346,3214.3,3214.2,0.27432494]
[1738233793008,8.04279346,3214.3,3214.2,0.27432494]
[1738233793309,6.12609,3214.3,3214.2,0.27432494]
[1738233793519,3.0,3214.3,3214.2,0.27432494]
[1738233793768,3.0,3214.3,3214.2,0.31932952]
[1738233794316,3.11092,3214.5,3214.2,0.31932952]
[1738233794549,3.92867,3214.8,3214.2,1.01692952]
[1738233794727,3.11067,3214.8,3214.3,0.41592499]
[1738233795129,3.0,3214.7,3214.4,0.04497728]
[1738233795747,3.0,3214.7,3214.2,4.08305494]
[1738233795915,6.1108,3214.6,3214.5,0.04496363]
[1738233796121,6.1108,3214.6,3214.2,0.97192494]
[1738233796321,6.1108,3214.6,3214.5,0.04496363]
[1738233796564,6.1108,3214.6,3214.2,0.97192494]
[1738233797163,6.1108,3214.6,3214.3,0.04499093]
[1738233797465,3.0,3214.6,3214.2,4.08308494]
[1738233797664,3.0,3214.6,3214.4,0.04497728]
[1738233797965,3.0,3214.6,3214.3,0.04499093]
[1738233798270,3.0,3214.6,3214.4,0.04497728]
[1738233798779,3.0,3214.6,3214.2,4.80252343]
[1738233798920,3.0,3214.6,3214.5,0.04496363]
[1738233799162,3.0,3214.6,3214.2,4.08308494]
[1738233799322,3.0,3214.6,3214.5,0.04496363]
[1738233799835,3.0,3214.6,3214.3,0.23302009]
[1738233800039,3.0,3214.6,3214.5,0.04496363]
[1738233800266,3.0,3214.6,3214.4,0.04488465]
[1738233800445,3.0,3214.6,3214.5,0.044871]
[1738233800851,3.0,3214.6,3214.3,0.23302009]
[1738233801182,3.0,3214.6,3214.5,0.044871]
[1738233801486,3.12609,3214.3,3214.2,0.27432494]
[1738233801785,3.67609,3214.3,3214.2,0.27432494]
[1738233802749,6.67609,3214.3,3214.2,0.27432494]
[1738233803060,7.48609,3214.3,3214.2,0.27432494]
[1738233803233,3.11191,3213.5,3213.3,0.23301787]
[1738233803773,3.11191,3213.5,3213.4,0.03478659]
[1738233804579,3.11226,3213.1,3212.8,0.6976]
[1738233804789,3.11238,3213.0,3212.5,5.34]
[1738233805083,3.11238,3213.0,3212.5,6.0376]
[1738233805448,3.11245,3212.9,3212.5,6.0376]
[1738233805638,3.11256,3212.8,3212.5,6.0376]
[1738233806239,3.11256,3212.8,3212.6,0.23280377]
[1738233806591,3.93093,3213.1,3212.6,0.23280377]
[1738233806739,3.11243,3213.0,3212.6,0.23280377]
[1738233807043,3.11247,3212.9,3212.6,0.23280377]
[1738233807795,3.11247,3212.9,3212.5,6.0376]
[1738233808685,3.11241,3213.0,3212.5,6.0376]
[1738233808845,3.11241,3213.0,3212.5,0.6976]
[1738233809989,3.93093,3213.1,3212.5,3.81042]
[1738233810287,3.11236,3213.0,3212.5,3.81042]
[1738233810639,3.93093,3213.1,3212.5,3.81042]
[1738233810991,3.11233,3213.1,3212.5,4.50587446]
[1738233814078,3.11233,3213.1,3212.5,4.50583446]
[1738233814640,3.10862693,3213.1,3212.5,4.50583446]
[1738233815408,3.10862693,3213.1,3212.6,3.11273]
[1738233817605,3.10862693,3213.1,3212.7,0.0342234]
[1738233817810,0.769,3213.4,3212.9,3.11243]
[1738233817979,4.08403,3213.4,3213.0,0.03418242]
[1738233818192,0.015,3213.3,3212.8,3.11249]
[1738233818540,3.12713,3213.3,3212.9,0.03419608]
[1738233818714,3.11219,3213.2,3212.9,0.03419608]
[1738233819012,3.12713,3213.3,3213.0,0.03418242]
[1738233820921,6.23928,3213.3,3212.8,0.03420974]
[1738233821077,6.23928,3213.3,3212.7,3.11256]
[1738233821423,6.23928,3213.3,3212.8,0.03420974]
[1738233821591,6.23928,3213.3,3212.7,3.11256]
[1738233821787,3.12713,3213.3,3212.8,0.03420974]
[1738233822005,3.12713,3213.3,3212.7,3.11256]
[1738233822206,3.12713,3213.3,3212.8,0.03420974]
[1738233822425,3.11217,3213.2,3212.7,3.804846]
[1738233822624,3.11217,3213.2,3212.9,0.03419608]
[1738233822843,3.11217,3213.2,3212.6,6.22537]
[1738233823139,0.0075,3213.1,3213.0,0.03418242]
[1738233823345,0.0075,3213.1,3212.7,3.11262]
[1738233823644,0.0075,3213.3,3212.8,3.11249]
[1738233823803,0.0075,3213.3,3212.9,0.6976]
[1738233823995,0.015,3213.3,3213.0,0.03418242]
[1738233825747,3.12707,3213.3,3213.0,0.03418242]
[1738233826645,0.015,3213.3,3213.0,0.03418242]
[1738233826802,3.91047,3213.2,3213.0,0.03418242]
[1738233827145,3.12751,3212.9,3212.6,0.6976]
[1738233827301,3.11259,3212.8,3212.4,0.6976]
[1738233827702,3.11259,3212.8,3212.4,0.93015123]
[1738233827938,3.1275,3212.9,3212.4,4.04306123]
[1738233828908,3.1275,3212.9,3212.4,3.81051]
[1738233829108,3.11256,3212.8,3212.4,0.6976]
[1738233831651,0.015,3212.9,3212.4,3.81046]
[1738233831857,0.7983,3213.2,3212.5,0.2643754]
[1738233832007,3.203,3213.4,3212.6,0.6976]
[1738233832207,6.31497,3213.4,3212.9,3.11237]
[1738233832430,0.015,3213.3,3213.0,0.73088794]
[1738233835015,3.0,3213.2,3213.0,0.73088794]
[1738233835348,0.015,3213.3,3213.0,0.73088794]
[1738233835511,3.11218,3213.2,3213.0,0.73088794]
[1738233836955,0.015,3213.3,3213.0,0.73088794]
[1738233837155,3.11167,3213.7,3213.0,3.84317794]
[1738233837314,3.11182,3213.6,3213.1,3.11223]
[1738233837515,3.0,3213.5,3213.1,0.03327428]
[1738233837755,6.11187,3213.5,3213.1,0.03327428]
[1738233838628,0.0075,3213.6,3213.2,3.34545114]
[1738233838825,0.0075,3213.6,3213.3,0.3711195]
[1738233839045,0.0075,3213.6,3213.3,0.33787254]
[1738233839457,0.0075,3213.6,3213.4,0.23336114]
[1738233839616,3.11179,3213.6,3213.4,0.23336114]
[1738233839815,3.11179,3213.6,3213.5,0.73081965]
[1738233840132,0.7896,3214.2,3213.5,0.73081965]
[1738233840324,0.7896,3214.2,3213.6,3.11168]
[1738233840325,3.0,3214.1,3213.6,3.11168]
[1738233840661,3.0,3214.1,3213.7,3.11166]
[1738233840959,3.0,3214.1,3213.7,3.37800665]
[1738233841126,6.11131,3214.1,3213.7,0.26634665]
[1738233841331,3.11131,3214.1,3213.7,0.26634665]
[1738233842429,3.11131,3214.1,3213.7,0.03298551]
[1738233845233,3.11131,3214.1,3213.7,0.48243132]
[1738233846565,3.11139,3214.0,3213.7,0.48243132]
[1738233846869,3.11139,3214.0,3213.7,0.03298551]
[1738233847158,3.11158,3213.8,3213.7,0.03298551]
[1738233847459,3.11908,3213.8,3213.4,0.6976]
[1738233847616,3.11172,3213.7,3213.4,0.6976]
[1738233848643,3.11178,3213.6,3213.2,0.6976]
[1738233851961,3.11912,3213.8,3213.2,7.50063542]
[1738233852125,3.11912,3213.8,3213.2,4.38852542]
[1738233852543,6.23077,3213.8,3213.2,4.38852542]
[1738233853127,3.11912,3213.8,3213.2,4.38850542]
[1738233853522,6.23076,3213.8,3213.2,4.38850542]
[1738233854340,3.11912,3213.8,3213.2,4.38850542]
[1738233854540,6.23078,3213.8,3213.2,3.80969]
[1738233855042,6.13800797,3213.8,3213.2,3.80969]
[1738233855560,3.1117,3213.7,3213.2,3.80969]
[1738233856071,3.11196,3213.5,3213.0,0.38431779]
[1738233856281,3.11196,3213.5,3212.9,3.81004]
[1738233856436,3.11198,3213.4,3212.9,3.81004]
[1738233856636,3.11198,3213.4,3212.9,3.80633692]
[1738233856852,3.11198,3213.4,3213.0,0.23276986]
[1738233858585,3.11198,3213.4,3212.9,6.91870692]
[1738233858938,3.11198,3213.4,3212.9,3.80633692]
[1738233859669,3.11198,3213.4,3212.9,6.91871692]
[1738233860891,3.11198,3213.4,3212.9,3.80633692]
[1738233862696,3.11198,3213.4,3213.0,0.03305973]
[1738233863194,3.11225,3213.1,3213.0,0.03305973]
[1738233863717,3.11225,3213.1,3213.0,0.03312033]
[1738233863925,3.11225,3213.1,3212.8,5.34]
[1738233864215,3.11225,3213.1,3213.0,0.03312033]
[1738233864381,3.11225,3213.1,3212.9,0.03313399]
[1738233864586,3.11225,3213.1,3212.8,5.34]
[1738233864587,3.11225,3213.1,3213.0,0.03312033]
[1738233865116,3.11225,3213.1,3213.0,0.03316668]
[1738233865313,3.11225,3213.1,3212.8,5.34]
[1738233865484,3.11225,3213.1,3213.0,0.03316668]
[1738233865807,3.11225,3213.1,3212.9,0.03318034]
[1738233866017,3.11215,3213.3,3213.0,0.03316668]
[1738233866310,3.11215,3213.3,3212.8,8.45254]
[1738233866471,3.11215,3213.3,3213.1,0.03315302]
[1738233866671,3.11216,3213.2,3212.8,5.34]
[1738233867106,3.11216,3213.2,3212.9,0.23301065]
[1738233867817,3.11226,3213.1,3212.9,0.23301065]
[1738233868113,3.11226,3213.1,3212.8,5.34]
[1738233868314,3.11226,3213.1,3212.7,0.6976]
[1738233868486,3.11219,3213.2,3212.7,3.81021]
[1738233869710,3.11219,3213.2,3212.8,0.23297266]
[1738233871017,3.11219,3213.2,3212.7,3.81021]
[1738233872434,3.11219,3213.2,3212.7,4.502508]
[1738233873796,3.11219,3213.2,3212.8,0.23303113]
[1738233873991,3.11219,3213.2,3212.8,3.34557113]
[1738233875035,3.1271,3213.3,3212.9,0.23303113]
[1738233875421,0.015,3213.3,3212.9,0.23303113]
[1738233875622,3.11221,3213.2,3212.9,0.23303113]
[1738233876644,3.11221,3213.2,3212.7,3.11259]
[1738233876932,3.11221,3213.2,3212.8,0.35788311]
[1738233877136,0.015,3213.3,3212.8,3.47042311]
[1738233877311,3.12707,3213.3,3212.8,3.47042311]
[1738233877513,3.12707,3213.3,3212.9,0.03324451]
[1738233879064,3.12707,3213.3,3213.0,0.23324045]
[1738233879420,3.12707,3213.3,3213.1,0.03321719]
[1738233880864,3.12707,3213.3,3213.2,0.03320353]
[1738233881161,3.12707,3213.3,3212.8,3.11254]
[1738233881321,3.12707,3213.3,3213.2,0.03320353]
[1738233881521,3.12707,3213.3,3212.8,3.11254]
[1738233881736,3.12707,3213.3,3213.2,0.03320353]
[1738233882056,3.11957,3213.3,3213.2,0.03320353]
[1738233882925,3.11957,3213.3,3212.9,0.46654499]
[1738233883139,3.11957,3213.3,3213.2,0.03320353]